fUST/lending_fUST_20250925
["ID","MTS","AMOUNT","RATE_DAILY","PERIOD"]
[387588085,1758775848353,-227.7277,0.000249,7]
[387588087,1758775848362,-241703.80219958,0.000249,2]
[387588094,1758775848423,-1149.00000072,0.000249,2]
[387588096,1758775848435,-305.25423391,0.000249,2]
[387588105,1758775848503,-480.0,0.00022355,2]
[387588106,1758775848512,-480.0,0.00022629,2]
[387588109,1758775848522,-370.64580198,0.00022903,2]
[387588110,1758775848532,-2081.15419802,0.000249,2]
[387588127,1758775848692,-105118.50814076,0.000249,2]
[387588129,1758775848705,-432.40790632,0.000249,2]
[387588131,1758775848721,-521.94346975,0.000249,2]
[387588140,1758775848797,-492.06758118,0.00019342,2]
[387588142,1758775848807,-250.0,0.00022432,2]
[387588144,1758775848816,-604.65,0.00024275,2]
[387588146,1758775848826,-604.65,0.00024549,2]
[387588148,1758775848839,-604.65,0.00024823,2]
[387588150,1758775848849,-5972.47386923,0.000249,2]
[387588152,1758775848864,-527.3554621,0.000249,2]
[387588154,1758775848877,-1437.1938843,0.000249,2]
[387589768,1758776013714,849.7182797,0.00018347,2]
[387589772,1758776052084,748.0035394,0.00018348,2]
[387589775,1758776080307,704.2555646,0.00018349,2]
[387589778,1758776186204,354.594889,0.00018346,2]
[387589787,1758776297949,-167.41472179,0.000192,2]
[387589795,1758776409215,636.04078414,0.00018342,2]
[387589796,1758776409241,866.95114596,0.00018342,2]
[387589817,1758776880158,257.43,0.00015984,2]
[387589875,1758777032051,-393.26543602,0.00019239,2]
[387589877,1758777032060,-171.73953697,0.00019273,2]
[387589879,1758777032070,-327.0,0.00019339,2]
[387589881,1758777032081,-366.4506791,0.00019339,2]
[387589883,1758777032091,-482.54981655,0.0001934,2]
[387589885,1758777032102,-246.34453136,0.0001934,2]
[387589897,1758777032160,-233.65546864,0.0001934,2]
[387589901,1758777032169,-480.0,0.0001934,2]
[387589905,1758777032179,-534.4929367,0.0001934,2]
[387589909,1758777032188,-480.0,0.0001934,2]
[387589912,1758777032198,-383.23791657,0.0001934,2]
[387589915,1758777032207,-215.87116998,0.0001934,2]
[387589918,1758777032217,-482.1693026,0.0001934,2]
[387589921,1758777032227,-517.76460405,0.0001934,2]
[387589924,1758777032236,-619.6,0.0001934,2]
[387589927,1758777032246,-480.0,0.0001934,2]
[387589930,1758777032255,-480.0,0.0001934,2]
[387589933,1758777032265,-84.55513595,0.0001934,2]
[387590171,1758777038097,-455.18073782,0.0001934,2]
[387590172,1758777038107,-468.10372181,0.0001934,2]
[387590173,1758777038154,-11.89627819,0.0001934,2]
[387590174,1758777038164,-468.86304731,0.0001934,2]
[387590175,1758777038173,-480.0,0.0001934,2]
[387590176,1758777038183,-480.0,0.0001934,2]
[387590177,1758777038192,-480.0,0.0001934,2]
[387590178,1758777038202,-480.0,0.0001934,2]
[387590179,1758777038211,-480.0,0.0001934,2]
[387590181,1758777038221,-480.0,0.0001934,2]
[387590183,1758777038230,-480.0,0.0001934,2]
[387590185,1758777038240,-3190.37535285,0.0001934,2]
[387590186,1758777038249,-480.0,0.0001934,2]
[387590187,1758777038258,-483.97608073,0.0001934,2]
[387590188,1758777038268,-480.0,0.0001934,2]
[387590189,1758777038277,-481.01172291,0.0001934,2]
[387590190,1758777038287,-480.85675468,0.0001934,2]
[387590191,1758777038297,-548.438831,0.0001934,2]
[387590192,1758777038306,-492.59,0.0001934,2]
[387590193,1758777038315,-480.0,0.0001934,2]
[387590194,1758777038325,-480.0,0.0001934,2]
[387590195,1758777038334,-480.0,0.0001934,2]
[387590196,1758777038346,-480.0,0.0001934,2]
[387590197,1758777038358,-480.0,0.0001934,2]
[387590198,1758777038367,-480.0,0.0001934,2]
[387590199,1758777038376,-480.0,0.0001934,2]
[387590200,1758777038385,-480.0,0.0001934,2]
[387590201,1758777038395,-480.0,0.0001934,2]
[387590203,1758777038404,-480.0,0.0001934,2]
[387590205,1758777038414,-480.0,0.0001934,2]
[387590207,1758777038423,-21.99303233,0.0001934,2]
[387590209,1758777038435,-460.42794544,0.0001934,2]
[387590211,1758777038445,-480.0,0.0001934,2]
[387590213,1758777038454,-249.03219097,0.0001934,2]
[387590215,1758777038463,-484.29622595,0.0001934,2]
[387590217,1758777038473,-313.48774268,0.0001934,2]
[387590219,1758777038482,-480.0,0.0001934,2]
[387590221,1758777038492,-480.0,0.0001934,2]
[387590223,1758777038502,-480.0,0.0001934,2]
[387590225,1758777038511,-480.0,0.0001934,2]
[387590227,1758777038521,-598.41,0.0001934,2]
[387590229,1758777038530,-559.66,0.0001934,2]
[387590231,1758777038539,-238.59274351,0.0001934,2]
[387590233,1758777038549,-488.17,0.0001934,2]
[387590235,1758777038559,-480.0,0.0001934,2]
[387590237,1758777038568,-480.0,0.0001934,2]
[387590239,1758777038578,-480.0,0.0001934,2]
[387590241,1758777038587,-492.15442356,0.0001934,2]
[387590243,1758777038596,-483.28817287,0.0001934,2]
[387590245,1758777038608,-485.29627251,0.0001934,2]
[387590247,1758777038617,-480.0,0.0001934,2]
[387590249,1758777038629,-480.0,0.0001934,2]
[387590251,1758777038638,-480.0,0.0001934,2]
[387590253,1758777038648,-480.0,0.0001934,2]
[387590255,1758777038657,-656.9,0.0001934,2]
[387590257,1758777038666,-490.13773502,0.00019341,2]
[387590259,1758777038676,-493.76892016,0.00019341,2]
[387590261,1758777038686,-483.31409388,0.00019341,2]
[387590263,1758777038695,-483.6702963,0.00019341,2]
[387590265,1758777038704,-485.31164915,0.00019341,2]
[387590267,1758777038714,-480.0,0.00019341,2]
[387590269,1758777038723,-480.0,0.00019341,2]
[387590271,1758777038733,-481.96056102,0.00019341,2]
[387590273,1758777038742,-487.05303371,0.00019341,2]
[387590275,1758777038752,-484.53931034,0.00019341,2]
[387590277,1758777038761,-487.2527934,0.00019341,2]
[387590279,1758777038770,-494.1525437,0.00019341,2]
[387590281,1758777038779,-488.69980892,0.00019341,2]
[387590283,1758777038788,-480.0,0.00019341,2]
[387590285,1758777038798,-480.0,0.00019341,2]
[387590287,1758777038807,-480.0,0.00019341,2]
[387590289,1758777038817,-480.0,0.00019341,2]
[387590291,1758777038827,-558.43249774,0.00019341,2]
[387590293,1758777038836,-484.14712858,0.00019341,2]
[387590295,1758777038846,-496.23373243,0.00019341,2]
[387590297,1758777038857,-485.4117618,0.00019341,2]
[387590299,1758777038866,-480.0,0.00019341,2]
[387590301,1758777038876,-492.15215985,0.00019341,2]
[387590303,1758777038885,-480.0,0.00019341,2]
[387590305,1758777038894,-388.46347517,0.00019341,2]
[387590307,1758777038903,-480.0,0.00019341,2]
[387590309,1758777038913,-480.0,0.00019341,2]
[387590311,1758777038923,-615.34687901,0.00019341,2]
[387590313,1758777038933,-480.0,0.00019341,2]
[387590315,1758777038942,-1241.17,0.00019341,2]
[387590317,1758777038951,-557.5,0.00019341,2]
[387590319,1758777038961,-387.75397473,0.00019341,2]
[387590321,1758777038971,-480.0,0.00019341,2]
[387590323,1758777038980,-480.0,0.00019341,2]
[387590325,1758777038989,-520.51586094,0.00019341,2]
[387590327,1758777038999,-480.0,0.00019341,2]
[387590329,1758777039009,-480.0,0.00019341,2]
[387590331,1758777039019,-480.0,0.00019341,2]
[387590333,1758777039029,-482.50323124,0.00019342,2]
[387590335,1758777039038,-480.0,0.00019342,2]
[387590337,1758777039048,-480.0,0.00019342,2]
[387590339,1758777039057,-480.0,0.00019342,2]
[387590341,1758777039072,-480.0,0.00019342,2]
[387590343,1758777039082,-480.0,0.00019342,2]
[387590345,1758777039091,-161.36,0.00019342,3]
[387590347,1758777039101,-484.08,0.00019342,3]
[387590349,1758777039111,-303.32616548,0.00019351,2]
[387590351,1758777039120,-563.11210166,0.00019351,2]
[387590353,1758777039131,-160.67417894,0.00019351,2]
[387590355,1758777039140,-500.0,0.00019351,2]
[387590357,1758777039149,-500.0,0.00019351,2]
[387590359,1758777039158,-500.0,0.00019351,2]
[387590361,1758777039168,-500.0,0.00019351,2]
[387590363,1758777039177,-500.0,0.00019351,2]
[387590365,1758777039186,-500.0,0.00019351,2]
[387590367,1758777039195,-500.0,0.00019351,2]
[387590369,1758777039205,-500.0,0.00019351,2]
[387590371,1758777039214,-500.0,0.00019351,2]
[387590373,1758777039224,-500.0,0.00019351,2]
[387590375,1758777039233,-8.24038944,0.00019351,2]
[387590378,1758777039250,-491.75961056,0.00019351,2]
[387590380,1758777039266,-500.0,0.00019351,2]
[387590381,1758777039276,-500.0,0.00019351,2]
[387590383,1758777039286,-396.62323999,0.00019351,2]
[387590385,1758777039296,-500.0,0.00019351,2]
[387590387,1758777039305,-450.0,0.00019351,2]
[387590389,1758777039314,-500.0,0.00019351,2]
[387590391,1758777039324,-500.0,0.00019351,2]
[387590393,1758777039334,-500.0,0.00019351,2]
[387590394,1758777039345,-500.0,0.00019351,2]
[387590396,1758777039357,-500.0,0.00019351,2]
[387590398,1758777039366,-500.0,0.00019351,2]
[387590400,1758777039376,-500.0,0.00019351,2]
[387590402,1758777039386,-500.0,0.00019351,2]
[387590404,1758777039395,-234.77227635,0.00019351,2]
[387590406,1758777039405,-370000.0,0.00019352,2]
[387590408,1758777039415,-500.0,0.00019373,2]
[387590410,1758777039426,-500.0,0.00019373,2]
[387590412,1758777039436,-500.0,0.00019373,2]
[387590415,1758777039446,-500.0,0.00019373,2]
[387590418,1758777039455,-500.0,0.00019373,2]
[387590420,1758777039465,-299.91959951,0.00019614,2]
[387590423,1758777039475,-486.72276005,0.00019614,2]
[387590425,1758777039484,-480.0,0.00019614,2]
[387590427,1758777039493,-480.0,0.00019614,2]
[387590429,1758777039502,-480.0,0.00019614,2]
[387590431,1758777039512,-480.0,0.00019614,2]
[387590433,1758777039521,-480.0,0.00019614,2]
[387590435,1758777039531,-480.0,0.00019614,2]
[387590437,1758777039540,-480.0,0.00019614,2]
[387590439,1758777039550,-492.59,0.00019614,2]
[387590442,1758777039560,-480.0,0.00019614,2]
[387590445,1758777039569,-480.0,0.00019614,2]
[387590447,1758777039578,-480.0,0.00019614,2]
[387590448,1758777039588,-480.0,0.00019614,2]
[387590449,1758777039597,-480.0,0.00019614,2]
[387590450,1758777039607,-480.0,0.00019614,2]
[387590451,1758777039617,-480.0,0.00019614,2]
[387590454,1758777039626,-480.0,0.00019614,2]
[387590457,1758777039636,-480.0,0.00019614,2]
[387590459,1758777039645,-480.0,0.00019614,2]
[387590462,1758777039655,-598.41,0.00019614,2]
[387590464,1758777039665,-559.66,0.00019614,2]
[387590466,1758777039675,-488.17,0.00019614,2]
[387590468,1758777039684,-480.0,0.00019614,2]
[387590470,1758777039694,-480.0,0.00019614,2]
[387590472,1758777039703,-480.0,0.00019614,2]
[387590474,1758777039713,-656.9,0.00019614,2]
[387590476,1758777039722,-480.0,0.00019615,2]
[387590478,1758777039732,-581.74229032,0.00019615,2]
[387590480,1758777039741,-480.0,0.00019615,2]
[387590481,1758777039751,-480.0,0.00019615,2]
[387590483,1758777039760,-480.0,0.00019615,2]
[387590485,1758777039770,-480.0,0.00019615,2]
[387590486,1758777039779,-480.0,0.00019615,2]
[387590488,1758777039789,-1241.17,0.00019615,2]
[387590490,1758777039798,-557.5,0.00019615,2]
[387590492,1758777039809,-480.0,0.00019615,2]
[387590494,1758777039818,-480.0,0.00019615,2]
[387590496,1758777039827,-480.0,0.00019615,2]
[387590498,1758777039837,-480.0,0.00019615,2]
[387590500,1758777039846,-480.0,0.00019615,2]
[387590502,1758777039856,-480.0,0.00019616,2]
[387590504,1758777039865,-480.0,0.00019616,2]
[387590506,1758777039875,-480.0,0.00019616,2]
[387590508,1758777039884,-480.0,0.00019616,2]
[387590510,1758777039893,-348.64461143,0.00019673,2]
[387590512,1758777039902,-332.58785924,0.00019673,2]
[387590514,1758777039911,-500.0,0.00019673,2]
[387590516,1758777039920,-571.63619755,0.00019673,2]
[387590517,1758777039930,-480.0,0.00019888,2]
[387590519,1758777039939,-480.0,0.00019888,2]
[387590521,1758777039948,-480.0,0.00019888,2]
[387590524,1758777039958,-208.56574848,0.00019888,2]
[387590526,1758777039967,-480.0,0.00019888,2]
[387590528,1758777039976,-480.0,0.00019888,2]
[387590530,1758777039986,-480.0,0.00019888,2]
[387590532,1758777039996,-492.59,0.00019888,2]
[387590534,1758777040005,-480.0,0.00019888,2]
[387590536,1758777040015,-480.0,0.00019888,2]
[387590552,1758777040119,-480.0,0.00019888,2]
[387590554,1758777040129,-480.0,0.00019888,2]
[387590556,1758777040139,-480.0,0.00019888,2]
[387590559,1758777040148,-480.0,0.00019888,2]
[387590562,1758777040159,-480.0,0.00019888,2]
[387590565,1758777040168,-480.0,0.00019888,2]
[387590568,1758777040177,-480.0,0.00019888,2]
[387590571,1758777040187,-480.0,0.00019888,2]
[387590575,1758777040196,-598.41,0.00019888,2]
[387590579,1758777040205,-559.66,0.00019888,2]
[387590583,1758777040216,-488.17,0.00019888,2]
[387590587,1758777040225,-480.0,0.00019888,2]
[387590591,1758777040235,-480.0,0.00019888,2]
[387590595,1758777040244,-480.0,0.00019888,2]
[387590599,1758777040253,-656.9,0.00019888,2]
[387590602,1758777040263,-480.0,0.00019889,2]
[387590605,1758777040272,-480.0,0.00019889,2]
[387590608,1758777040281,-480.0,0.00019889,2]
[387590611,1758777040291,-480.0,0.00019889,2]
[387590614,1758777040300,-480.0,0.00019889,2]
[387590617,1758777040310,-480.0,0.00019889,2]
[387590620,1758777040319,-1241.17,0.00019889,2]
[387590623,1758777040329,-557.5,0.00019889,2]
[387590626,1758777040339,-480.0,0.00019889,2]
[387590629,1758777040350,-480.0,0.00019889,2]
[387590632,1758777040360,-386.38850538,0.00019889,2]
[387590635,1758777040370,-480.0,0.00019889,2]
[387590637,1758777040379,-480.0,0.00019889,2]
[387590639,1758777040389,-240.3621039,0.0001989,2]
[387590641,1758777040399,-480.0,0.0001989,2]
[387590643,1758777040408,-480.0,0.0001989,2]
[387590645,1758777040417,-480.0,0.0001989,2]
[387590647,1758777040427,-1111.71217565,0.000199,2]
[387590649,1758777040437,-1000.0,0.00019921,2]
[387590651,1758777040446,-508.80111578,0.00019921,2]
[387590653,1758777040455,-1043.74098733,0.00019921,2]
[387590655,1758777040465,-1000.0,0.00019921,2]
[387590657,1758777040474,-1000.0,0.00019921,2]
[387590659,1758777040485,-500.0,0.00019926,2]
[387590662,1758777040495,-178.55621229,0.00019973,2]
[387590663,1758777040505,-500.0,0.00019973,2]
[387590666,1758777040515,-500.0,0.00019973,2]
[387590668,1758777040525,-500.0,0.00019973,2]
[387590669,1758777040535,-100000.0,0.0001999,2]
[387590671,1758777040545,-600.7,0.00020062,2]
[387590673,1758777040555,-480.0,0.00020162,2]
[387590675,1758777040565,-480.0,0.00020162,2]
[387590677,1758777040575,-480.0,0.00020162,2]
[387590679,1758777040585,-480.0,0.00020162,2]
[387590681,1758777040595,-480.0,0.00020162,2]
[387590683,1758777040605,-397.64451597,0.00020162,2]
[387590685,1758777040615,-492.59,0.00020162,2]
[387590687,1758777040624,-480.0,0.00020162,2]
[387590689,1758777040634,-480.0,0.00020162,2]
[387590691,1758777040644,-480.0,0.00020162,2]
[387590693,1758777040654,-480.0,0.00020162,2]
[387590695,1758777040663,-480.0,0.00020162,2]
[387590697,1758777040673,-480.0,0.00020162,2]
[387590698,1758777040684,-480.0,0.00020162,2]
[387590700,1758777040693,-480.0,0.00020162,2]
[387590702,1758777040703,-480.0,0.00020162,2]
[387590704,1758777040713,-480.0,0.00020162,2]
[387590706,1758777040722,-598.41,0.00020162,2]
[387590708,1758777040732,-559.66,0.00020162,2]
[387590710,1758777040742,-488.17,0.00020162,2]
[387590712,1758777040752,-480.0,0.00020162,2]
[387590714,1758777040761,-480.0,0.00020162,2]
[387590716,1758777040771,-480.0,0.00020162,2]
[387590717,1758777040781,-656.9,0.00020162,2]
[387590718,1758777040791,-480.0,0.00020163,2]
[387590719,1758777040801,-480.0,0.00020163,2]
[387590720,1758777040811,-480.0,0.00020163,2]
[387590721,1758777040821,-480.0,0.00020163,2]
[387590722,1758777040831,-480.0,0.00020163,2]
[387590723,1758777040840,-480.0,0.00020163,2]
[387590724,1758777040849,-1241.17,0.00020163,2]
[387590725,1758777040859,-557.5,0.00020163,2]
[387590726,1758777040869,-495.96230381,0.00020163,2]
[387590727,1758777040878,-480.0,0.00020163,2]
[387590728,1758777040888,-480.0,0.00020163,2]
[387590729,1758777040897,-150.42966953,0.00020163,2]
[387590730,1758777040907,-480.0,0.00020164,2]
[387590731,1758777040916,-480.0,0.00020164,2]
[387590733,1758777040926,-480.0,0.00020164,2]
[387590735,1758777040935,-1000.0,0.00020221,2]
[387590737,1758777040945,-480.0,0.00020436,2]
[387590739,1758777040955,-480.0,0.00020436,2]
[387590741,1758777040964,-480.0,0.00020436,2]
[387590743,1758777040974,-480.0,0.00020436,2]
[387590745,1758777040984,-480.0,0.00020436,2]
[387590747,1758777040993,-492.59,0.00020436,2]
[387590749,1758777041003,-480.0,0.00020436,2]
[387590751,1758777041012,-480.0,0.00020436,2]
[387590753,1758777041022,-480.0,0.00020436,2]
[387590755,1758777041032,-480.0,0.00020436,2]
[387590757,1758777041041,-480.0,0.00020436,2]
[387590759,1758777041050,-480.0,0.00020436,2]
[387590761,1758777041060,-480.0,0.00020436,2]
[387590763,1758777041069,-480.0,0.00020436,2]
[387590765,1758777041078,-480.0,0.00020436,2]
[387590767,1758777041088,-480.0,0.00020436,2]
[387590769,1758777041097,-598.41,0.00020436,2]
[387590771,1758777041106,-559.66,0.00020436,2]
[387590773,1758777041116,-488.17,0.00020436,2]
[387590775,1758777041126,-480.0,0.00020436,2]
[387590777,1758777041135,-480.0,0.00020436,2]
[387590779,1758777041145,-480.0,0.00020436,2]
[387590781,1758777041154,-656.9,0.00020436,2]
[387590783,1758777041164,-480.0,0.00020437,2]
[387590785,1758777041173,-480.0,0.00020437,2]
[387590787,1758777041182,-480.0,0.00020437,2]
[387590789,1758777041191,-480.0,0.00020437,2]
[387590791,1758777041201,-480.0,0.00020437,2]
[387590793,1758777041212,-480.0,0.00020437,2]
[387590795,1758777041221,-1241.17,0.00020437,2]
[387590797,1758777041232,-557.5,0.00020437,2]
[387590799,1758777041242,-480.0,0.00020437,2]
[387590801,1758777041253,-480.0,0.00020437,2]
[387590803,1758777041262,-480.0,0.00020438,2]
[387590805,1758777041272,-480.0,0.00020438,2]
[387590807,1758777041283,-480.0,0.00020438,2]
[387590809,1758777041292,-1500.0,0.00020468,2]
[387590811,1758777041301,-1500.0,0.00020468,2]
[387590813,1758777041311,-1500.0,0.00020468,2]
[387590815,1758777041321,-394.58552777,0.00020474,2]
[387590817,1758777041332,-1000.0,0.00020521,2]
[387590820,1758777041343,-1021.83973664,0.00020521,2]
[387590821,1758777041357,-1000.0,0.00020521,2]
[387590823,1758777041368,-259.39,0.00020605,2]
[387590826,1758777041379,-300.0,0.00020613,2]
[387590828,1758777041392,-480.0,0.0002071,2]
[387590830,1758777041404,-480.0,0.0002071,2]
[387590832,1758777041417,-480.0,0.0002071,2]
[387590835,1758777041429,-480.0,0.0002071,2]
[387590837,1758777041441,-492.59,0.0002071,2]
[387590839,1758777041453,-480.0,0.0002071,2]
[387590841,1758777041464,-397.17835169,0.0002071,2]
[387590843,1758777041475,-583.10476794,0.0002071,2]
[387590846,1758777041485,-454.51955245,0.0002071,2]
[387590848,1758777041496,-480.0,0.0002071,2]
[387590850,1758777041507,-613.89105678,0.0002071,2]
[387590852,1758777041518,-480.0,0.0002071,2]
[387590854,1758777041528,-480.0,0.0002071,2]
[387590856,1758777041539,-480.0,0.0002071,2]
[387590859,1758777041551,-480.0,0.0002071,2]
[387590861,1758777041563,-598.41,0.0002071,2]
[387590863,1758777041574,-559.66,0.0002071,2]
[387590865,1758777041586,-488.17,0.0002071,2]
[387590867,1758777041597,-151.84063337,0.0002071,2]
[387590869,1758777041610,-480.0,0.0002071,2]
[387590872,1758777041622,-656.9,0.0002071,2]
[387590874,1758777041634,-480.0,0.0002071,2]
[387590876,1758777041645,-480.0,0.00020711,2]
[387590878,1758777041656,-480.0,0.00020711,2]
[387590881,1758777041667,-480.0,0.00020711,2]
[387590883,1758777041678,-480.0,0.00020711,2]
[387590885,1758777041688,-480.0,0.00020711,2]
[387590887,1758777041699,-480.0,0.00020711,2]
[387590889,1758777041710,-1241.17,0.00020711,2]
[387590891,1758777041721,-557.5,0.00020711,2]
[387590894,1758777041732,-480.0,0.00020711,2]
[387590896,1758777041743,-480.0,0.00020711,2]
[387590898,1758777041753,-322.72,0.00020712,3]
[387590900,1758777041764,-480.0,0.00020712,2]
[387590903,1758777041777,-480.0,0.00020712,2]
[387590905,1758777041788,-480.0,0.00020712,2]
[387590907,1758777041800,-583.86256585,0.00020768,2]
[387590909,1758777041810,-1111.71217561,0.00020972,2]
[387590911,1758777041822,-480.0,0.00020984,2]
[387590913,1758777041833,-480.0,0.00020984,2]
[387590915,1758777041843,-480.0,0.00020984,2]
[387590918,1758777041853,-480.0,0.00020984,2]
[387590920,1758777041866,-492.59,0.00020984,2]
[387590922,1758777041878,-504.83,0.00020984,2]
[387590924,1758777041889,-480.0,0.00020984,2]
[387590926,1758777041899,-480.0,0.00020984,2]
[387590928,1758777041911,-480.0,0.00020984,2]
[387590930,1758777041922,-480.0,0.00020984,2]
[387590932,1758777041934,-480.0,0.00020984,2]
[387590935,1758777041945,-598.41,0.00020984,2]
[387590937,1758777041956,-559.66,0.00020984,2]
[387590939,1758777041969,-488.17,0.00020984,2]
[387590941,1758777041979,-480.0,0.00020984,2]
[387590944,1758777041991,-656.9,0.00020984,2]
[387590946,1758777042003,-480.0,0.00020985,2]
[387590948,1758777042014,-480.0,0.00020985,2]
[387590950,1758777042026,-480.0,0.00020985,2]
[387590953,1758777042037,-480.0,0.00020985,2]
[387590955,1758777042049,-480.0,0.00020985,2]
[387590957,1758777042061,-480.0,0.00020985,2]
[387590959,1758777042072,-1241.17,0.00020985,2]
[387590961,1758777042082,-557.5,0.00020985,2]
[387590963,1758777042092,-480.0,0.00020985,2]
[387590965,1758777042101,-480.0,0.00020985,2]
[387590967,1758777042114,-480.0,0.00020986,2]
[387590969,1758777042124,-480.0,0.00020986,2]
[387590971,1758777042134,-480.0,0.00020986,2]
[387590974,1758777042144,-704.11219832,0.00021016,2]
[387590994,1758777042323,-583.99999999,0.00021016,2]
[387590996,1758777042336,-711.88780169,0.00021016,2]
[387590998,1758777042346,-329.89320392,0.00021016,2]
[387591001,1758777042363,-523.00889075,0.00021016,2]
[387591003,1758777042373,-193.28053724,0.00021068,2]
[387591005,1758777042383,-1500.0,0.00021068,2]
[387591007,1758777042395,-171.73953695,0.00021115,2]
[387591009,1758777042406,-480.0,0.00021258,2]
[387591011,1758777042416,-480.0,0.00021258,2]
[387591013,1758777042429,-280.9545795,0.00021258,2]
[387591016,1758777042440,-480.0,0.00021258,2]
[387591018,1758777042450,-492.59,0.00021258,2]
[387591020,1758777042460,-480.0,0.00021258,2]
[387591022,1758777042470,-480.0,0.00021258,2]
[387591024,1758777042481,-480.0,0.00021258,2]
[387591026,1758777042491,-480.0,0.00021258,2]
[387591028,1758777042501,-480.0,0.00021258,2]
[387591030,1758777042512,-598.41,0.00021258,2]
[387591033,1758777042522,-559.66,0.00021258,2]
[387591036,1758777042533,-488.17,0.00021258,2]
[387591040,1758777042543,-480.0,0.00021258,2]
[387591043,1758777042553,-656.9,0.00021258,2]
[387591046,1758777042564,-459.2,0.00021259,2]
[387591049,1758777042574,-480.0,0.00021259,2]
[387591052,1758777042584,-480.0,0.00021259,2]
[387591056,1758777042595,-480.0,0.00021259,2]
[387591059,1758777042606,-480.0,0.00021259,2]
[387591062,1758777042616,-480.0,0.00021259,2]
[387591065,1758777042627,-1241.17,0.00021259,2]
[387591067,1758777042637,-557.5,0.00021259,2]
[387591069,1758777042647,-480.0,0.00021259,2]
[387591071,1758777042658,-480.0,0.00021259,2]
[387591073,1758777042669,-480.0,0.0002126,2]
[387591075,1758777042682,-480.0,0.0002126,2]
[387591077,1758777042693,-480.0,0.0002126,2]
[387591079,1758777042704,-365.64913676,0.00021299,2]
[387591082,1758777042715,-168.63354543,0.00021466,2]
[387591084,1758777042727,-480.0,0.00021532,2]
[387591086,1758777042738,-480.0,0.00021532,2]
[387591088,1758777042747,-480.0,0.00021532,2]
[387591090,1758777042757,-492.59,0.00021532,2]
[387591092,1758777042766,-480.0,0.00021532,2]
[387591094,1758777042775,-480.0,0.00021532,2]
[387591096,1758777042784,-307.14,0.00021532,2]
[387591110,1758777042794,-480.0,0.00021532,2]
[387591113,1758777042920,-598.41,0.00021532,2]
[387591115,1758777042930,-559.66,0.00021532,2]
[387591117,1758777042940,-488.17,0.00021532,2]
[387591119,1758777042950,-656.9,0.00021532,2]
[387591121,1758777042959,-480.0,0.00021533,2]
[387591123,1758777042968,-480.0,0.00021533,2]
[387591125,1758777042978,-480.0,0.00021533,2]
[387591127,1758777042987,-488.90844089,0.00021533,2]
[387591129,1758777042996,-480.0,0.00021533,2]
[387591131,1758777043006,-1241.17,0.00021533,2]
[387591133,1758777043015,-557.5,0.00021533,2]
[387591135,1758777043024,-480.0,0.00021533,2]
[387591137,1758777043034,-480.0,0.00021533,2]
[387591139,1758777043043,-480.0,0.00021534,2]
[387591141,1758777043054,-250.99130607,0.00021534,2]
[387591143,1758777043064,-480.0,0.00021534,2]
[387591145,1758777043073,-2500.0,0.00021564,2]